[Event "*** SCC Grand Prix: Titled Tuesday Blitz"]
[Site "Chess.com"]
[Date "2020.10.06"]
[Round "1"]
[White "fireheart92"]
[Black "LedakovAlexandr"]
[Result "1-0"]
[WhiteElo "2863"]
[BlackElo "2439"]
[TimeControl "180+1"]
[EndTime "10:07:13 PDT"]
[Termination "fireheart92 won on time"]

1. d4 {[%clk 0:03:00.9]} 1... Nc6 {[%clk 0:03:00.2]} 2. Nf3 {[%clk 0:02:58.4]}
2... d6 {[%clk 0:02:59.8]} 3. e4 {[%clk 0:02:56.8]} 3... g6 {[%clk 0:03:00]} 4.
Nc3 {[%clk 0:02:55]} 4... Bg7 {[%clk 0:03:00.4]} 5. h3 {[%clk 0:02:50.9]} 5...
Nf6 {[%clk 0:03:00.1]} 6. Bb5 {[%clk 0:02:49.5]} 6... O-O {[%clk 0:02:59.6]} 7.
O-O {[%clk 0:02:49.6]} 7... Nd7 {[%clk 0:02:46.9]} 8. Re1 {[%clk 0:02:46.2]}
8... e5 {[%clk 0:02:40.5]} 9. dxe5 {[%clk 0:02:46.2]} 9... Ncxe5 {[%clk
0:02:34.4]} 10. Nxe5 {[%clk 0:02:46.1]} 10... dxe5 {[%clk 0:02:26]} 11. Be3
{[%clk 0:02:41.6]} 11... c6 {[%clk 0:02:01.7]} 12. Bf1 {[%clk 0:02:37.3]} 12...
Qe7 {[%clk 0:01:42]} 13. Qd2 {[%clk 0:02:25.3]} 13... Nc5 {[%clk 0:01:38.9]} 14.
Rad1 {[%clk 0:02:24.4]} 14... Ne6 {[%clk 0:01:38.7]} 15. Ne2 {[%clk 0:02:17.9]}
15... Rd8 {[%clk 0:01:37.2]} 16. Qc3 {[%clk 0:02:04.3]} 16... Nd4 {[%clk
0:01:17.1]} 17. Nxd4 {[%clk 0:01:49.7]} 17... exd4 {[%clk 0:01:15]} 18. Rxd4
{[%clk 0:01:43.6]} 18... Be6 {[%clk 0:00:57.2]} 19. e5 {[%clk 0:01:31]} 19...
Bxa2 {[%clk 0:00:35.2]} 20. Rxd8+ {[%clk 0:01:22.5]} 20... Rxd8 {[%clk
0:00:36.1]} 21. Bc5 {[%clk 0:01:10.8]} 21... Qc7 {[%clk 0:00:30]} 22. b3 {[%clk
0:01:10.2]} 22... b6 {[%clk 0:00:18.5]} 23. Ba3 {[%clk 0:01:01.4]} 23... Re8
{[%clk 0:00:14.4]} 24. f4 {[%clk 0:00:58.5]} 24... g5 {[%clk 0:00:07.6]} 25. Bc1
{[%clk 0:00:48.5]} 25... b5 {[%clk 0:00:03.4]} 26. Kh1 {[%clk 0:00:31.2]} 26...
Qb6 {[%clk 0:00:02.6]} 27. Be3 {[%clk 0:00:24]} 27... b4 {[%clk 0:00:02.1]} 28.
Qb2 {[%clk 0:00:21.1]} 28... Qa5 {[%clk 0:00:02.4]} 29. Ra1 {[%clk 0:00:18]}
29... gxf4 {[%clk 0:00:02.9]} 30. Bxf4 {[%clk 0:00:18.6]} 30... Bxe5 {[%clk
0:00:02.5]} 31. Bxe5 {[%clk 0:00:18.1]} 31... Rxe5 {[%clk 0:00:02.4]} 32. Qxa2
{[%clk 0:00:15.2]} 32... Qd5 {[%clk 0:00:01.6]} 33. Qxa7 {[%clk 0:00:14.5]} 1-0

[Event "*** SCC Grand Prix: Titled Tuesday Blitz"]
[Site "Chess.com"]
[Date "2020.10.06"]
[Round "1"]
[White "UCantHandleDenker"]
[Black "secretsuperstar7"]
[Result "1-0"]
[WhiteElo "2566"]
[BlackElo "2253"]
[TimeControl "180+1"]
[EndTime "10:07:14 PDT"]
[Termination "UCantHandleDenker won on time"]

1. Nf3 {[%clk 0:03:00.9]} 1... d5 {[%clk 0:02:57.4]} 2. g3 {[%clk 0:03:01.4]}
2... Nf6 {[%clk 0:02:53.8]} 3. Bg2 {[%clk 0:03:01.6]} 3... e6 {[%clk 0:02:53.5]}
4. O-O {[%clk 0:03:02.5]} 4... Be7 {[%clk 0:02:50.2]} 5. d3 {[%clk 0:03:02.9]}
5... O-O {[%clk 0:02:50.1]} 6. Nbd2 {[%clk 0:03:03.5]} 6... c5 {[%clk
0:02:49.1]} 7. e4 {[%clk 0:03:03.6]} 7... Nc6 {[%clk 0:02:49.1]} 8. Re1 {[%clk
0:03:03.6]} 8... Qc7 {[%clk 0:02:46.7]} 9. Qe2 {[%clk 0:03:02.2]} 9... a6 {[%clk
0:02:39.5]} 10. e5 {[%clk 0:02:58.4]} 10... Nd7 {[%clk 0:02:38.4]} 11. Nf1
{[%clk 0:02:58.9]} 11... b5 {[%clk 0:02:34.8]} 12. h4 {[%clk 0:02:58.2]} 12...
b4 {[%clk 0:02:24.4]} 13. N1h2 {[%clk 0:02:57.2]} 13... Bb7 {[%clk 0:02:21.8]}
14. h5 {[%clk 0:02:56.1]} 14... Nd4 {[%clk 0:02:15.7]} 15. Nxd4 {[%clk
0:02:53.3]} 15... cxd4 {[%clk 0:02:16.6]} 16. Bf4 {[%clk 0:02:52.7]} 16... Rac8
{[%clk 0:02:12.6]} 17. Rac1 {[%clk 0:02:50.9]} 17... Qa5 {[%clk 0:02:12]} 18. h6
{[%clk 0:02:44.7]} 18... g6 {[%clk 0:02:05.9]} 19. Ra1 {[%clk 0:02:29.3]} 19...
Qc5 {[%clk 0:01:55.6]} 20. Rec1 {[%clk 0:02:27.5]} 20... Qb6 {[%clk 0:01:40.3]}
21. Qd2 {[%clk 0:02:24.9]} 21... f6 {[%clk 0:01:36.7]} 22. exf6 {[%clk 0:02:22]}
22... Bxf6 {[%clk 0:01:35.1]} 23. Ng4 {[%clk 0:02:17.7]} 23... Bh8 {[%clk
0:01:31]} 24. Re1 {[%clk 0:02:16.3]} 24... Rce8 {[%clk 0:01:19.8]} 25. Ne5
{[%clk 0:02:14.2]} 25... Nxe5 {[%clk 0:01:16.7]} 26. Bxe5 {[%clk 0:02:15.1]}
26... Bxe5 {[%clk 0:01:10.9]} 27. Rxe5 {[%clk 0:02:16]} 27... Qd6 {[%clk
0:01:10.2]} 28. Rae1 {[%clk 0:02:14.1]} 28... Bc8 {[%clk 0:01:07.2]} 29. Bxd5
{[%clk 0:02:02]} 29... Bd7 {[%clk 0:00:42.9]} 30. Bg2 {[%clk 0:01:58.5]} 30...
Rf6 {[%clk 0:00:31.3]} 31. f4 {[%clk 0:01:55]} 31... Rc8 {[%clk 0:00:18.3]} 32.
Bh3 {[%clk 0:01:49.9]} 32... Rc6 {[%clk 0:00:16.5]} 33. R1e2 {[%clk 0:01:39.4]}
33... Qf8 {[%clk 0:00:16.3]} 34. Qe1 {[%clk 0:01:36.3]} 34... Qxh6 {[%clk
0:00:16.1]} 35. Bxe6+ {[%clk 0:01:32.4]} 35... Bxe6 {[%clk 0:00:11.5]} 36. Rxe6
{[%clk 0:01:33.3]} 36... Rcxe6 {[%clk 0:00:11.7]} 37. Rxe6 {[%clk 0:01:33.7]}
37... Rf8 {[%clk 0:00:11.2]} 38. Re7 {[%clk 0:01:31.6]} 38... Qh3 {[%clk
0:00:09.5]} 39. Qe6+ {[%clk 0:01:30.5]} 39... Qxe6 {[%clk 0:00:10]} 40. Rxe6
{[%clk 0:01:31.4]} 40... Ra8 {[%clk 0:00:09.8]} 41. Rc6 {[%clk 0:01:28.3]} 41...
a5 {[%clk 0:00:09]} 42. Rc4 {[%clk 0:01:27]} 42... Rd8 {[%clk 0:00:06.9]} 43.
Kf2 {[%clk 0:01:27.4]} 43... Kf7 {[%clk 0:00:06.4]} 44. a3 {[%clk 0:01:26.3]}
44... bxa3 {[%clk 0:00:05.5]} 45. bxa3 {[%clk 0:01:27.2]} 45... Ke6 {[%clk
0:00:05.9]} 46. Ra4 {[%clk 0:01:22.9]} 46... Rd5 {[%clk 0:00:05.7]} 47. Kf3
{[%clk 0:01:23.4]} 47... Rc5 {[%clk 0:00:05.6]} 48. Rc4 {[%clk 0:01:20.5]} 48...
Rxc4 {[%clk 0:00:05.2]} 49. dxc4 {[%clk 0:01:20.7]} 49... Kd6 {[%clk 0:00:05.7]}
50. Ke4 {[%clk 0:01:17.3]} 50... Kc5 {[%clk 0:00:06]} 51. Kd3 {[%clk 0:01:15.8]}
51... h6 {[%clk 0:00:03.3]} 52. c3 {[%clk 0:01:08.3]} 52... dxc3 {[%clk
0:00:02.1]} 53. Kxc3 {[%clk 0:01:09.2]} 53... h5 {[%clk 0:00:02.4]} 54. a4
{[%clk 0:01:08.5]} 54... Kc6 {[%clk 0:00:01.9]} 55. Kd4 {[%clk 0:01:08.9]} 55...
Kd6 {[%clk 0:00:01.8]} 56. c5+ {[%clk 0:01:09.3]} 56... Kc6 {[%clk 0:00:02.2]}
57. Kc4 {[%clk 0:01:10]} 57... Kc7 {[%clk 0:00:02.2]} 58. Kb5 {[%clk 0:01:10.6]}
1-0

[Event "*** SCC Grand Prix: Titled Tuesday Blitz"]
[Site "Chess.com"]
[Date "2020.10.06"]
[Round "1"]
[White "gumimis"]
[Black "crazy_but_lazy"]
[Result "0-1"]
[WhiteElo "2242"]
[BlackElo "2559"]
[TimeControl "180+1"]
[EndTime "10:07:14 PDT"]
[Termination "crazy_but_lazy won by checkmate"]

1. e4 {[%clk 0:02:55.2]} 1... c5 {[%clk 0:02:57.8]} 2. Nf3 {[%clk 0:02:55.4]}
2... Nc6 {[%clk 0:02:56.4]} 3. d4 {[%clk 0:02:55.4]} 3... cxd4 {[%clk
0:02:57.3]} 4. Nxd4 {[%clk 0:02:56.3]} 4... g6 {[%clk 0:02:57.4]} 5. c4 {[%clk
0:02:55.9]} 5... Bg7 {[%clk 0:02:57.4]} 6. Be3 {[%clk 0:02:55.7]} 6... Nf6
{[%clk 0:02:56.8]} 7. Nc3 {[%clk 0:02:55.9]} 7... d6 {[%clk 0:02:57.2]} 8. Be2
{[%clk 0:02:54.8]} 8... O-O {[%clk 0:02:57.3]} 9. O-O {[%clk 0:02:55.2]} 9...
Bd7 {[%clk 0:02:58]} 10. Nc2 {[%clk 0:02:55.1]} 10... Rc8 {[%clk 0:02:51.3]} 11.
Qd2 {[%clk 0:02:50]} 11... Ng4 {[%clk 0:02:43.8]} 12. Bxg4 {[%clk 0:02:46.5]}
12... Bxg4 {[%clk 0:02:44.7]} 13. Rac1 {[%clk 0:02:35.8]} 13... Be6 {[%clk
0:02:42.8]} 14. b3 {[%clk 0:02:30.6]} 14... Qa5 {[%clk 0:02:40.3]} 15. Nd4
{[%clk 0:02:12.5]} 15... Nxd4 {[%clk 0:02:39.6]} 16. Bxd4 {[%clk 0:02:12.2]}
16... a6 {[%clk 0:02:39.8]} 17. f4 {[%clk 0:02:06.7]} 17... Bxd4+ {[%clk
0:02:37.3]} 18. Qxd4 {[%clk 0:02:06.7]} 18... Qc5 {[%clk 0:02:37.1]} 19. Ne2
{[%clk 0:01:59.6]} 19... f5 {[%clk 0:02:24.6]} 20. e5 {[%clk 0:01:54.7]} 20...
dxe5 {[%clk 0:02:24]} 21. fxe5 {[%clk 0:01:42.2]} 21... Rfd8 {[%clk 0:02:23.8]}
22. Qxc5 {[%clk 0:01:39.7]} 22... Rxc5 {[%clk 0:02:24.1]} 23. Nf4 {[%clk
0:01:37]} 23... Kf7 {[%clk 0:02:22.8]} 24. Rce1 {[%clk 0:01:07.4]} 24... g5
{[%clk 0:02:16.1]} 25. Ne2 {[%clk 0:00:53.3]} 25... Rxe5 {[%clk 0:02:14.2]} 26.
h4 {[%clk 0:00:44.3]} 26... Rd2 {[%clk 0:02:03.9]} 27. Nc3 {[%clk 0:00:33.6]}
27... Rxe1 {[%clk 0:02:00]} 28. Rxe1 {[%clk 0:00:34.5]} 28... gxh4 {[%clk
0:02:00.3]} 29. Re2 {[%clk 0:00:26.2]} 29... Rd3 {[%clk 0:01:56]} 30. Na4 {[%clk
0:00:22.2]} 30... h3 {[%clk 0:01:53.2]} 31. Nc5 {[%clk 0:00:15.2]} 31... Rd1+
{[%clk 0:01:53.3]} 32. Kh2 {[%clk 0:00:15]} 32... hxg2 {[%clk 0:01:53.5]} 33.
Kxg2 {[%clk 0:00:15.3]} 33... Bc8 {[%clk 0:01:54]} 34. Kg3 {[%clk 0:00:11.2]}
34... Kf6 {[%clk 0:01:52.1]} 35. Kf4 {[%clk 0:00:10.6]} 35... e5+ {[%clk
0:01:51.9]} 36. Kg3 {[%clk 0:00:10.4]} 36... f4+ {[%clk 0:01:50.9]} 37. Kf3
{[%clk 0:00:10.7]} 37... Bf5 {[%clk 0:01:28.4]} 38. Rh2 {[%clk 0:00:10.7]} 38...
Rf1+ {[%clk 0:01:22.7]} 39. Ke2 {[%clk 0:00:10.8]} 39... Ra1 {[%clk 0:01:23.2]}
40. Kf3 {[%clk 0:00:09.2]} 40... Re1 {[%clk 0:01:15.2]} 41. Nxb7 {[%clk
0:00:08]} 41... Re3+ {[%clk 0:01:11.7]} 42. Kf2 {[%clk 0:00:08.5]} 42... e4
{[%clk 0:01:10.7]} 43. Nc5 {[%clk 0:00:08.6]} 43... Rc3 {[%clk 0:01:09.4]} 44.
Rh6+ {[%clk 0:00:08]} 44... Kg5 {[%clk 0:01:08.5]} 45. Rxa6 {[%clk 0:00:08]}
45... Rc2+ {[%clk 0:01:07.9]} 46. Ke1 {[%clk 0:00:08.3]} 46... f3 {[%clk
0:01:06.7]} 47. Ne6+ {[%clk 0:00:07.8]} 47... Kh4 {[%clk 0:01:00.4]} 48. Nd4
{[%clk 0:00:07.7]} 48... f2+ {[%clk 0:00:59.2]} 49. Kf1 {[%clk 0:00:07.4]} 49...
Bh3# {[%clk 0:00:59.6]} 0-1

[Event "*** SCC Grand Prix: Titled Tuesday Blitz"]
[Site "Chess.com"]
[Date "2020.10.06"]
[Round "1"]
[White "Kotofeyca"]
[Black "DeGrootteZ"]
[Result "1-0"]
[WhiteElo "2361"]
[BlackElo "2651"]
[TimeControl "180+1"]
[EndTime "10:07:15 PDT"]
[Termination "Kotofeyca won by resignation"]

1. d4 {[%clk 0:03:00.9]} 1... d5 {[%clk 0:02:57.3]} 2. c4 {[%clk 0:02:59.9]}
2... e6 {[%clk 0:02:57.6]} 3. Nc3 {[%clk 0:02:58.5]} 3... a6 {[%clk 0:02:57.7]}
4. cxd5 {[%clk 0:02:55.7]} 4... exd5 {[%clk 0:02:58.6]} 5. Nf3 {[%clk
0:02:55.6]} 5... Nf6 {[%clk 0:02:58]} 6. Bg5 {[%clk 0:02:55.2]} 6... Be6 {[%clk
0:02:58.4]} 7. e3 {[%clk 0:02:54.5]} 7... Nbd7 {[%clk 0:02:57.8]} 8. Bd3 {[%clk
0:02:54.2]} 8... Bd6 {[%clk 0:02:57.7]} 9. O-O {[%clk 0:02:53.9]} 9... O-O
{[%clk 0:02:58.2]} 10. a3 {[%clk 0:02:48.9]} 10... c6 {[%clk 0:02:53.8]} 11. b4
{[%clk 0:02:48]} 11... b5 {[%clk 0:02:52.4]} 12. e4 {[%clk 0:02:44.7]} 12...
dxe4 {[%clk 0:02:50.8]} 13. Nxe4 {[%clk 0:02:45.6]} 13... Be7 {[%clk 0:02:50.1]}
14. Nc5 {[%clk 0:02:38.2]} 14... Bd5 {[%clk 0:02:38.5]} 15. Ne5 {[%clk
0:02:14.8]} 15... h6 {[%clk 0:02:15.4]} 16. Bh4 {[%clk 0:02:08.9]} 16... Nxe5
{[%clk 0:01:31.7]} 17. dxe5 {[%clk 0:02:05.8]} 17... Nd7 {[%clk 0:01:31]} 18.
Nb7 {[%clk 0:01:37.8]} 18... Qe8 {[%clk 0:01:17.4]} 19. Nd6 {[%clk 0:01:37.5]}
19... Qd8 {[%clk 0:00:55.1]} 20. Nb7 {[%clk 0:01:23.1]} 20... Qe8 {[%clk
0:00:55]} 21. Nd6 {[%clk 0:01:22.7]} 21... Bxd6 {[%clk 0:00:52.2]} 22. exd6
{[%clk 0:01:23.6]} 22... f6 {[%clk 0:00:23.8]} 23. Re1 {[%clk 0:01:20.7]} 23...
Ne5 {[%clk 0:00:18.6]} 24. f4 {[%clk 0:01:13.3]} 24... Qd7 {[%clk 0:00:16.5]}
25. fxe5 {[%clk 0:01:11.9]} 25... fxe5 {[%clk 0:00:17.4]} 26. Be7 {[%clk
0:01:08.8]} 26... Qe6 {[%clk 0:00:11.4]} 27. Bxf8 {[%clk 0:01:04.9]} 27... Rxf8
{[%clk 0:00:12.3]} 28. Rf1 {[%clk 0:01:04.7]} 28... Rd8 {[%clk 0:00:12]} 29. Qh5
{[%clk 0:00:55.4]} 29... e4 {[%clk 0:00:12]} 30. Rae1 {[%clk 0:00:41.6]} 30...
Qxd6 {[%clk 0:00:11.8]} 31. Bxe4 {[%clk 0:00:36.3]} 31... Bc4 {[%clk 0:00:12.4]}
32. Rf3 {[%clk 0:00:30.7]} 32... Qd4+ {[%clk 0:00:12.4]} 33. Rfe3 {[%clk
0:00:30.5]} 33... Bf7 {[%clk 0:00:09.7]} 34. Qf3 {[%clk 0:00:29]} 34... Re8
{[%clk 0:00:09.9]} 35. h3 {[%clk 0:00:28.8]} 35... c5 {[%clk 0:00:05.8]} 36.
bxc5 {[%clk 0:00:27.1]} 36... Qxc5 {[%clk 0:00:06.7]} 37. Kh1 {[%clk 0:00:26.7]}
37... Rf8 {[%clk 0:00:07.3]} 38. Qf5 {[%clk 0:00:25.3]} 38... Qxf5 {[%clk
0:00:07.6]} 39. Bxf5 {[%clk 0:00:26]} 39... Bc4 {[%clk 0:00:08.5]} 40. Be6+
{[%clk 0:00:25.2]} 40... Bxe6 {[%clk 0:00:08.9]} 41. Rxe6 {[%clk 0:00:26]} 41...
Rf4 {[%clk 0:00:09.2]} 42. Rxa6 {[%clk 0:00:26.1]} 1-0

[Event "*** SCC Grand Prix: Titled Tuesday Blitz"]
[Site "Chess.com"]
[Date "2020.10.06"]
[Round "1"]
[White "PotapovaM"]
[Black "anon569"]
[Result "1-0"]
[WhiteElo "2559"]
[BlackElo "2246"]
[TimeControl "180+1"]
[EndTime "10:07:16 PDT"]
[Termination "PotapovaM won by resignation"]

1. d4 {[%clk 0:02:56.9]} 1... Nf6 {[%clk 0:02:59.5]} 2. c4 {[%clk 0:02:57.3]}
2... e6 {[%clk 0:02:59.9]} 3. Nf3 {[%clk 0:02:56.8]} 3... Bb4+ {[%clk
0:03:00.3]} 4. Nbd2 {[%clk 0:02:56.5]} 4... b6 {[%clk 0:02:56.2]} 5. a3 {[%clk
0:02:55.3]} 5... Bxd2+ {[%clk 0:02:55.3]} 6. Qxd2 {[%clk 0:02:56.2]} 6... Bb7
{[%clk 0:02:55.8]} 7. e3 {[%clk 0:02:53.3]} 7... a5 {[%clk 0:02:52.7]} 8. b3
{[%clk 0:02:52.1]} 8... O-O {[%clk 0:02:50.6]} 9. Bb2 {[%clk 0:02:52.2]} 9... d6
{[%clk 0:02:48.8]} 10. Bd3 {[%clk 0:02:50.7]} 10... Ne4 {[%clk 0:02:48]} 11. Qc2
{[%clk 0:02:50.5]} 11... f5 {[%clk 0:02:47.7]} 12. O-O {[%clk 0:02:48]} 12...
Nd7 {[%clk 0:02:42.7]} 13. Nd2 {[%clk 0:02:45.5]} 13... Nxd2 {[%clk 0:02:01.8]}
14. Qxd2 {[%clk 0:02:46.4]} 14... e5 {[%clk 0:02:01.4]} 15. d5 {[%clk
0:02:40.3]} 15... e4 {[%clk 0:01:05.2]} 16. Bc2 {[%clk 0:02:27]} 16... Qg5
{[%clk 0:01:00.4]} 17. Kh1 {[%clk 0:02:21.1]} 17... Nf6 {[%clk 0:00:53.3]} 18.
f4 {[%clk 0:02:04.8]} 18... exf3 {[%clk 0:00:46.2]} 19. Rxf3 {[%clk 0:02:02.8]}
19... Ne4 {[%clk 0:00:43.1]} 20. Bxe4 {[%clk 0:02:00.1]} 20... fxe4 {[%clk
0:00:42.4]} 21. Rg3 {[%clk 0:02:00.4]} 21... Qe7 {[%clk 0:00:16]} 22. Rxg7+
{[%clk 0:01:59.1]} 22... Qxg7 {[%clk 0:00:16.1]} 23. Bxg7 {[%clk 0:02:00]} 23...
Kxg7 {[%clk 0:00:16.7]} 24. Qd4+ {[%clk 0:02:00.6]} 24... Kg8 {[%clk 0:00:16.5]}
25. Qxe4 {[%clk 0:01:40.4]} 25... Rae8 {[%clk 0:00:15.1]} 26. Qg4+ {[%clk
0:01:40.5]} 26... Kh8 {[%clk 0:00:15.6]} 27. Qd4+ {[%clk 0:01:41.1]} 27... Kg8
{[%clk 0:00:15.1]} 28. Re1 {[%clk 0:01:22.1]} 28... Rf7 {[%clk 0:00:12.8]} 29.
h3 {[%clk 0:01:19.3]} 29... Bc8 {[%clk 0:00:09]} 30. e4 {[%clk 0:01:17.3]} 30...
Ref8 {[%clk 0:00:09.1]} 31. Re3 {[%clk 0:01:12.5]} 31... Rg7 {[%clk 0:00:08.2]}
32. e5 {[%clk 0:00:52.1]} 32... dxe5 {[%clk 0:00:07.6]} 33. Rxe5 {[%clk
0:00:47.4]} 33... Bf5 {[%clk 0:00:05.1]} 34. Kh2 {[%clk 0:00:43.2]} 34... Bg6
{[%clk 0:00:03.9]} 35. b4 {[%clk 0:00:40.8]} 35... axb4 {[%clk 0:00:03.2]} 36.
axb4 {[%clk 0:00:41.7]} 36... Be8 {[%clk 0:00:02.5]} 37. c5 {[%clk 0:00:39.8]}
37... bxc5 {[%clk 0:00:03.2]} 38. bxc5 {[%clk 0:00:40.7]} 38... Bd7 {[%clk
0:00:03.8]} 39. d6 {[%clk 0:00:39.8]} 39... cxd6 {[%clk 0:00:03.3]} 40. cxd6
{[%clk 0:00:40.7]} 40... Kh8 {[%clk 0:00:03.3]} 41. Re7 {[%clk 0:00:40.1]} 1-0

[Event "*** SCC Grand Prix: Titled Tuesday Blitz"]
[Site "Chess.com"]
[Date "2020.10.06"]
[Round "1"]
[White "wannabe2700"]
[Black "diablanni"]
[Result "0-1"]
[WhiteElo "2697"]
[BlackElo "2388"]
[TimeControl "180+1"]
[EndTime "10:07:18 PDT"]
[Termination "diablanni won by checkmate"]

1. e4 {[%clk 0:02:51.7]} 1... c5 {[%clk 0:02:59.9]} 2. d4 {[%clk 0:02:49.8]}
2... cxd4 {[%clk 0:02:59.6]} 3. Nf3 {[%clk 0:02:41.9]} 3... Nc6 {[%clk
0:02:58.6]} 4. Nxd4 {[%clk 0:02:42.4]} 4... g6 {[%clk 0:02:58.1]} 5. c4 {[%clk
0:02:42]} 5... Nf6 {[%clk 0:02:57.6]} 6. Nc3 {[%clk 0:02:42]} 6... d6 {[%clk
0:02:56.2]} 7. Be2 {[%clk 0:02:40.7]} 7... Nxd4 {[%clk 0:02:56.1]} 8. Qxd4
{[%clk 0:02:40.2]} 8... Bg7 {[%clk 0:02:56.7]} 9. Be3 {[%clk 0:02:40.5]} 9...
O-O {[%clk 0:02:55.4]} 10. Qd2 {[%clk 0:02:39.6]} 10... a5 {[%clk 0:02:55.4]}
11. Rc1 {[%clk 0:02:38.4]} 11... a4 {[%clk 0:02:55]} 12. O-O {[%clk 0:02:37.3]}
12... Be6 {[%clk 0:02:47.9]} 13. Rfd1 {[%clk 0:02:35.3]} 13... Qa5 {[%clk
0:02:46.3]} 14. f3 {[%clk 0:02:33.2]} 14... Rfc8 {[%clk 0:02:41.8]} 15. Nd5
{[%clk 0:02:33.3]} 15... Qxd2 {[%clk 0:02:37.8]} 16. Bxd2 {[%clk 0:02:30.4]}
16... Nxd5 {[%clk 0:02:36.4]} 17. exd5 {[%clk 0:02:21.5]} 17... Bd7 {[%clk
0:02:32.5]} 18. Bc3 {[%clk 0:02:21.2]} 18... Bh6 {[%clk 0:02:23.2]} 19. Ra1
{[%clk 0:02:16.9]} 19... a3 {[%clk 0:02:22.1]} 20. b3 {[%clk 0:02:08.9]} 20...
b5 {[%clk 0:02:21.5]} 21. Bd4 {[%clk 0:02:05.6]} 21... bxc4 {[%clk 0:02:19.2]}
22. Bxc4 {[%clk 0:02:06.5]} 22... Rab8 {[%clk 0:01:56.2]} 23. Re1 {[%clk
0:02:04.1]} 23... Kf8 {[%clk 0:01:55.3]} 24. Be3 {[%clk 0:01:29.1]} 24... Bxe3+
{[%clk 0:01:48.8]} 25. Rxe3 {[%clk 0:01:30]} 25... Bb5 {[%clk 0:01:48.9]} 26.
Rc1 {[%clk 0:01:25.8]} 26... Rc5 {[%clk 0:01:47.5]} 27. Kf2 {[%clk 0:01:17.3]}
27... Rbc8 {[%clk 0:01:24.8]} 28. Rec3 {[%clk 0:01:16.5]} 28... e6 {[%clk
0:01:23.7]} 29. dxe6 {[%clk 0:00:31.9]} 29... d5 {[%clk 0:01:23.1]} 30. e7+
{[%clk 0:00:22.1]} 30... Kxe7 {[%clk 0:01:22.8]} 31. Re3+ {[%clk 0:00:17.2]}
31... Kf8 {[%clk 0:01:22.4]} 32. Bxb5 {[%clk 0:00:14.9]} 32... Rxc1 {[%clk
0:01:22]} 33. Bd3 {[%clk 0:00:14.8]} 33... R8c3 {[%clk 0:00:55]} 34. Ke2 {[%clk
0:00:14.9]} 34... Ra1 {[%clk 0:00:53.8]} 35. Re5 {[%clk 0:00:11.5]} 35... d4
{[%clk 0:00:50.3]} 36. Bc4 {[%clk 0:00:07.9]} 36... Rxa2+ {[%clk 0:00:49.5]} 37.
Kd1 {[%clk 0:00:08.4]} 37... Rxg2 {[%clk 0:00:46.1]} 38. Ra5 {[%clk 0:00:08.2]}
38... a2 {[%clk 0:00:39.7]} 39. Ra8+ {[%clk 0:00:04.9]} 39... Kg7 {[%clk
0:00:39.5]} 40. Ra7 {[%clk 0:00:05.8]} 40... a1=Q+ {[%clk 0:00:37.7]} 41. Rxa1
{[%clk 0:00:05.1]} 41... Rg1+ {[%clk 0:00:38.2]} 42. Kd2 {[%clk 0:00:04.3]}
42... Rxa1 {[%clk 0:00:39.1]} 43. f4 {[%clk 0:00:04]} 43... Ra2+ {[%clk
0:00:39.1]} 44. Kd1 {[%clk 0:00:03.7]} 44... Rh3 {[%clk 0:00:39]} 45. b4 {[%clk
0:00:03.1]} 45... Raxh2 {[%clk 0:00:36.9]} 46. b5 {[%clk 0:00:01.7]} 46... Ra3
{[%clk 0:00:37.3]} 47. b6 {[%clk 0:00:02.5]} 47... Ra1# {[%clk 0:00:37.1]} 0-1

[Event "*** SCC Grand Prix: Titled Tuesday Blitz"]
[Site "Chess.com"]
[Date "2020.10.06"]
[Round "1"]
[White "nochewycandy"]
[Black "Stalri"]
[Result "0-1"]
[WhiteElo "2493"]
[BlackElo "2133"]
[TimeControl "180+1"]
[EndTime "10:07:20 PDT"]
[Termination "Stalri won by checkmate"]

1. e4 {[%clk 0:03:00.4]} 1... c5 {[%clk 0:03:00.2]} 2. b3 {[%clk 0:03:00.3]}
2... e6 {[%clk 0:02:58.4]} 3. Nf3 {[%clk 0:02:59.2]} 3... Nc6 {[%clk 0:02:58.7]}
4. Bb2 {[%clk 0:02:59.2]} 4... a6 {[%clk 0:02:55.4]} 5. c4 {[%clk 0:02:56.5]}
5... d6 {[%clk 0:02:53.8]} 6. d4 {[%clk 0:02:54.9]} 6... cxd4 {[%clk 0:02:52.9]}
7. Nxd4 {[%clk 0:02:55.8]} 7... Nf6 {[%clk 0:02:51.6]} 8. Nc3 {[%clk 0:02:53.9]}
8... Be7 {[%clk 0:02:48.4]} 9. Be2 {[%clk 0:02:49.2]} 9... O-O {[%clk
0:02:47.6]} 10. O-O {[%clk 0:02:46.5]} 10... Nd7 {[%clk 0:02:46.5]} 11. Rc1
{[%clk 0:02:39.3]} 11... Bf6 {[%clk 0:02:46]} 12. Nc2 {[%clk 0:02:36]} 12... Nc5
{[%clk 0:02:42.6]} 13. f3 {[%clk 0:02:27.1]} 13... Rb8 {[%clk 0:02:28.6]} 14.
Qd2 {[%clk 0:02:23.8]} 14... Qe7 {[%clk 0:02:24.6]} 15. Rfd1 {[%clk 0:02:23]}
15... Rd8 {[%clk 0:02:24]} 16. Ne3 {[%clk 0:02:22.4]} 16... b6 {[%clk
0:02:19.8]} 17. Kh1 {[%clk 0:02:15.7]} 17... Nd4 {[%clk 0:02:15.4]} 18. Ncd5
{[%clk 0:02:10.4]} 18... exd5 {[%clk 0:02:10.4]} 19. Nxd5 {[%clk 0:02:11.3]}
19... Qe6 {[%clk 0:01:30.2]} 20. Nxf6+ {[%clk 0:02:10.1]} 20... Qxf6 {[%clk
0:01:30.6]} 21. Bxd4 {[%clk 0:02:10.3]} 21... Qg6 {[%clk 0:01:30.3]} 22. Qe3
{[%clk 0:02:02.4]} 22... Re8 {[%clk 0:01:24.6]} 23. Qf2 {[%clk 0:01:46.3]} 23...
h5 {[%clk 0:01:23.3]} 24. Qg3 {[%clk 0:01:45.1]} 24... Qxg3 {[%clk 0:01:20.4]}
25. hxg3 {[%clk 0:01:46]} 25... Ne6 {[%clk 0:01:20]} 26. Be3 {[%clk 0:01:45]}
26... Rd8 {[%clk 0:01:16.1]} 27. Rd5 {[%clk 0:01:29.4]} 27... g6 {[%clk
0:01:13.4]} 28. Rcd1 {[%clk 0:01:28.9]} 28... b5 {[%clk 0:01:03.4]} 29. Rxd6
{[%clk 0:01:26]} 29... Re8 {[%clk 0:01:01.2]} 30. c5 {[%clk 0:01:23.4]} 30... f5
{[%clk 0:00:52.1]} 31. Bd3 {[%clk 0:01:05.7]} 31... Kf7 {[%clk 0:00:44.3]} 32.
exf5 {[%clk 0:01:04.6]} 32... gxf5 {[%clk 0:00:41.6]} 33. Bxf5 {[%clk
0:01:02.7]} 33... Rb7 {[%clk 0:00:34.7]} 34. c6 {[%clk 0:00:58.5]} 34... Rbe7
{[%clk 0:00:33.1]} 35. Bb6 {[%clk 0:00:47.8]} 35... Kf6 {[%clk 0:00:30.7]} 36.
Bh3 {[%clk 0:00:41.5]} 36... Ke5 {[%clk 0:00:29.2]} 37. R1d5+ {[%clk 0:00:38.6]}
37... Kf6 {[%clk 0:00:27.7]} 38. Bd4+ {[%clk 0:00:39.1]} 38... Kf7 {[%clk
0:00:27.3]} 39. Rf5+ {[%clk 0:00:37.4]} 39... Kg6 {[%clk 0:00:26.5]} 40. Rf6+
{[%clk 0:00:37]} 40... Kh7 {[%clk 0:00:25]} 41. Bf5+ {[%clk 0:00:35.9]} 41...
Kg8 {[%clk 0:00:23.9]} 42. Rg6+ {[%clk 0:00:25.3]} 42... Kf7 {[%clk 0:00:24]}
43. Rh6 {[%clk 0:00:22.8]} 43... Nxd4 {[%clk 0:00:22.3]} 44. Bxc8 {[%clk
0:00:17.9]} 44... Re1+ {[%clk 0:00:21.6]} 45. Kh2 {[%clk 0:00:18.3]} 45... Nxf3+
{[%clk 0:00:22.1]} 46. gxf3 {[%clk 0:00:11.5]} 46... R8e2+ {[%clk 0:00:20.9]}
47. Kh3 {[%clk 0:00:12.1]} 47... Rh1# {[%clk 0:00:21.3]} 0-1